Cogmind - Beta 13 @@@ ROGUE MODE // 2024.04.16 @ 09:51:11 Player: BagelsSniperWolf Result: Destroyed by G-34 Mercenary with Small Laser Performance ------------- Evolutions (1) 500 Regions Visited (3) 600 Robots Destroyed (29) 145 Value Destroyed (843) 843 Prototype IDs (1) 20 Alien Tech Used (0) 0 Bonus (19) 19 TOTAL SCORE: 2127 Bonus ------- High Alert Combat Kills 19 Cogmind --------- Core Integrity 0/400 Matter 280/300 Energy 99/100 System Corruption 0% Temperature Cool (6) Movement Core (400) Ox7 Location -9/Materials Parts ------- > --- POWER (2) -------- (None) > --- PROPULSION (2) --- (None) > --- UTILITY (3) ------ Large Storage Unit > --- WEAPON (2) ------- Backup Laser I Grenade Launcher > --- INVENTORY (15) --- Improved Ion Engine Improved Ion Engine Wheel Wheel Medium Laser Assault Rifle Grenade Launcher Peak State ------------ > --- POWER ------------ Improved Ion Engine Light Nuclear Core > --- PROPULSION ------- Wheel Wheel > --- UTILITY ---------- Large Storage Unit Backup Plating I > --- WEAPON ----------- Backup Laser I Grenade Launcher > --- INVENTORY -------- Improved Ion Engine Improved Ion Engine Aluminum Leg Aluminum Leg Wheel Improved EM Shotgun Medium Laser Assault Rifle Grenade Launcher Grenade Launcher [Rating: 12] Favorites ----------- Power Light Nuclear Core Engine Improved Ion Engine Power Core Light Nuclear Core Propulsion Wheel Leg Aluminum Leg Wheel Wheel Utility Large Storage Unit Storage Large Storage Unit Protection Backup Plating I Weapon Grenade Launcher Energy Gun Medium Laser Ballistic Gun Assault Rifle Ballistic Cannon Light Cannon Launcher Grenade Launcher Build | -11 -10 -10 -9 ------- Run | Yrd Mat Min Mat Slots Evolved 2 | . . . 2 Power 1 | . . . 1 Propulsion . | . . . . Utility 1 | . . . 1 Weapon . | . . . . Parts Attached 21 | 6 4 2 9 Power 5 | 1 1 1 2 Engine 4 | 1 1 . 2 Core 1 | . . 1 . Reactor . | . . . . Propulsion 6 | 2 1 . 3 Treads . | . . . . Leg 2 | . . . 2 Wheel 4 | 2 1 . 1 Hover . | . . . . Flight . | . . . . Utility 2 | 1 1 . . Device . | . . . . Storage 2 | 1 1 . . Processor . | . . . . Hackware . | . . . . Protection . | . . . . Artifact . | . . . . Weapon 8 | 2 1 1 4 Energy Gun 3 | 1 . . 2 Energy Cannon . | . . . . Ballistic Gun 1 | 1 . . . Ballistic Cannon 2 | . . 1 1 Launcher 2 | . 1 . 1 Special Weapon . | . . . . Impact Weapon . | . . . . Slashing Weapon . | . . . . Piercing Weapon . | . . . . Special Melee Weapon . | . . . . Unidentified Prototypes 1 | . . . 1 Parts Lost 9 | . . 1 8 Power 3 | . . 1 2 Propulsion 2 | . . . 2 Utility 1 | . . . 1 Weapon 3 | . . . 3 Highest Loss Streak 8 | . . 1 8 To Critical Strikes . | . . . . Average Slot Usage (%) 77 | . 85 80 71 Engine 9 | . 14 8 8 Core 4 | . . . 8 Leg 4 | . . . 10 Wheel 18 | . 28 28 7 Storage 12 | . 14 14 11 Protection 3 | . . . 6 Energy Gun 7 | . 14 9 3 Ballistic Cannon 4 | . . 4 7 Launcher 11 | . 14 14 8 Naked Turns . | . . . . Heaviest Build 39 | 14 28 31 39 Greatest Support 20 | 20 20 20 20 Greatest Overweight (x) 7 | 3 1 1 7 Average Overweight (x) . | . . 1 1 Largest Inventory Capacity 15 | 8 15 15 15 Average Capacity 13 | 7 9 15 15 Most Carried 12 | 3 9 10 12 Average Carried 7 | 1 5 9 9 Final Capacity 15 | 8 15 15 15 Final Carried 9 | 3 9 9 7 Class Distribution -------------------- 100% | Mutant Dominant Class ---------------- Mutant | -10/Materials Mutant | -10/Mines Mutant | -9/Materials Resources | -11 -10 -10 -9 ----------- Run | Yrd Mat Min Mat Matter Collected 778 | 209 201 96 272 Remotely . | . . . . Salvage Created 647 | . 159 80 408 Parts 43 | . 13 9 21 Haulers Intercepted . | . . . . Recyclers Shooed 3 | . 2 . 1 Parts Field Recycled . | . . . . Retrieved Matter . | . . . . Parts Self-Destructed . | . . . . Prevented . | . . . . Kills | -11 -10 -10 -9 ------- Run | Yrd Mat Min Mat Combat Hostiles Destroyed 26 | . 6 5 15 Guns 6 | . . 3 3 Cannons 7 | . . 2 5 AOE 13 | . 6 . 7 Classes Destroyed 6 | . 3 1 2 Builder 1 | . 1 . . Mechanic 1 | . . . 1 Watcher 1 | . 1 . . Swarmer 7 | . . 3 4 Grunt 18 | . 6 2 10 Sentry 1 | . . . 1 Best Kill Streak 6 | . 5 3 6 Combat Bots Only 4 | . 4 3 4 Max Kills in Single Turn 2 | . 2 1 2 Gunslinging . | . . . . Exploded 2 | . 2 . 2 Melee . | . . . . Uniques/NPCs Destroyed . | . . . . Combat | -11 -10 -10 -9 -------- Run | Yrd Mat Min Mat Hostile Shots Fired 155 | . 8 8 139 Missed 42 | . 1 . 41 Damage Taken 1406 | . 164 66 1176 Core 504 | . 85 10 409 Absorbed by Shields . | . . . . Regen/Repaired (Parts) 87 | . . . 87 Core Remaining (%) 81 | 100 . 62 . Volleys Fired 82 | . 14 20 48 Largest 2 | . 1 1 2 Hottest 65 | . 30 50 65 Shots Fired 89 | . 14 20 55 Gun 27 | . . 6 21 Cannon 34 | . . 12 22 Launcher 28 | . 14 2 12 Special . | . . . . Kinetic 34 | . . 12 22 Thermal 22 | . . 6 16 Explosive 28 | . 14 2 12 Electromagnetic 5 | . . . 5 Robot Hit Streak 12 | . 3 5 12 Robot Miss Streak 4 | . . 1 4 Penetration Max . | . . . . Secondary Targets . | . . . . Shots Hit Robots 55 | . 3 14 38 Core Hits 53 | . 18 7 28 Critical Kills . | . . . . Critical Parts Destroyed . | . . . . Critical Strikes 2 | . . 2 . Burn 1 | . . 1 . Blast 1 | . . 1 . Melee Attacks . | . . . . Impact . | . . . . Slashing . | . . . . Piercing . | . . . . Sneak Attacks . | . . . . Combat Hostiles . | . . . . Follow-up Attacks . | . . . . Damage Inflicted 1937 | . 557 279 1101 Guns 304 | . . 65 239 Cannons 399 | . . 214 185 Explosions 1234 | . 557 . 677 Melee . | . . . . Ramming . | . . . . Kinetic 399 | . . 214 185 Thermal 201 | . . 65 136 Explosive 1234 | . 557 . 677 Electromagnetic 103 | . . . 103 Impact . | . . . . Slashing . | . . . . Piercing . | . . . . Highest Corruption . | . . . . Average Corruption . | . . . . Corruption Purged . | . . . . Corruption Blocked . | . . . . Overload Shots . | . . . . Overflow Damage 26 | . . . 26 Projectiles . | . . . . Explosions 26 | . . . 26 Melee . | . . . . Knockbacks 1 | . . . 1 Impact . | . . . . Kinetic 1 | . . . 1 Secondary . | . . . . Self-Inflicted Damage 124 | . 73 . 51 Shots 6 | . 2 . 4 Rammed . | . . . . Targets Rammed . | . . . . Kicked . | . . . . Crushed . | . . . . Highest Temperature 88 | . 14 5 88 Average Temperature 27 | . 7 5 31 Received Heat Transfer 636 | . 51 . 585 Siege Activations . | . . . . Robots Corrupted . | . . . . Combat Hostiles . | . . . . Parts Fried . | . . . . Impact Corruptions . | . . . . Robots Melted . | . . . . Combat Hostiles . | . . . . Parts Melted 3 | . . . 3 Heat Transferred 851 | . . 259 592 Parts Sabotaged . | . . . . Parts Stolen . | . . . . Parts Stripped . | . . . . Power Chain Reactions . | . . . . Alert | -11 -10 -10 -9 ------- Run | Yrd Mat Min Mat Peak Influence 468 | . 292 242 468 Initial 119 | . . 119 94 Average 168 | . 116 161 224 Maximum Alert Level 2 | . 1 1 2 Low Security (%) 70 | 100 89 63 58 Level 1 28 | . 10 36 38 Level 2 1 | . . . 2 Level 3 . | . . . . Level 4 . | . . . . Level 5 . | . . . . High Security . | . . . . Max Security . | . . . . Squads Dispatched 4 | . 1 . 3 Investigation 1 | . . . 1 Extermination . | . . . . Reinforcement 3 | . 1 . 2 Assault . | . . . . Garrison . | . . . . Intercept . | . . . . Searches Triggered . | . . . . Construction Impeded 1 | . . . 1 Haulers Reinforced . | . . . . Active Scanning Responses . | . . . . Cargo Convoy Interrupts . | . . . . Stealth | -11 -10 -10 -9 --------- Run | Yrd Mat Min Mat Distress Signals 3 | . 1 . 2 Communications Jammed . | . . . . Distress Signals . | . . . . Times Spotted 35 | . 10 3 22 Peak Tracking Total 6 | . 3 3 6 Tactical Retreats . | . . . . Traps | -11 -10 -10 -9 ------- Run | Yrd Mat Min Mat Traps Triggered . | . . . . Indirectly . | . . . . Trap Hack Attempts . | . . . . Triggered . | . . . . Disarmed . | . . . . Reprogrammed . | . . . . Reused . | . . . . Traps Extracted . | . . . . Installed . | . . . . Triggered . | . . . . Machines | -11 -10 -10 -9 ---------- Run | Yrd Mat Min Mat Machines Disabled 5 | . 4 1 . Max in Single Turn 1 | . 1 1 . Machines Repaired . | . . . . Machines Dismantled . | . . . . Machines Sabotaged . | . . . . Overloaded Fab Kills . | . . . . Hacking | -11 -10 -10 -9 --------- Run | Yrd Mat Min Mat Machines Accessed 3 | . 2 . 1 Terminals 1 | . 1 . . Fabricators . | . . . . Repair Stations 1 | . . . 1 Recycling Units 1 | . 1 . . Scanalyzers . | . . . . Garrison Access . | . . . . Total Hacks 12 | . 7 . 5 Successful 8 | . 4 . 4 Failed 4 | . 3 . 1 Catastrophic . | . . . . Database Lockouts . | . . . . Manual . | . . . . Terminals 2 | . 2 . . Fabricators . | . . . . Repair Stations 5 | . . . 5 Recycling Units 5 | . 5 . . Scanalyzers . | . . . . Garrison Access . | . . . . Terminal Hacks 2 | . 2 . . Locate Traps 1 | . 1 . . Dispatch Records 1 | . 1 . . Fabricator Hacks . | . . . . Repair Station Hacks 4 | . . . 4 Scan Component 2 | . . . 2 Repair 1 | . . . 1 Refit 1 | . . . 1 Recycling Unit Hacks 2 | . 2 . . Report Inventory 1 | . 1 . . Retrieve Components 1 | . 1 . . Scanalyzer . | . . . . Garrison Access Hacks . | . . . . Unauthorized Hacks . | . . . . Terminals . | . . . . Fabricators . | . . . . Repair Stations . | . . . . Recycling Units . | . . . . Scanalyzers . | . . . . Garrison Access . | . . . . Data Cores Recovered . | . . . . Used . | . . . . Hacking Detections 2 | . 1 . 1 Full Trace Events 1 | . . . 1 Feedback Events . | . . . . Feedback Blocked . | . . . . Robot Schematics Acquired . | . . . . Robots Built . | . . . . Authchips . | . . . . Time . | . . . . Total Robot Build Rating . | . . . . Part Schematics Acquired . | . . . . Parts Built . | . . . . Authchips . | . . . . Time . | . . . . Total Part Build Rating . | . . . . Parts Repaired 1 | . . . 1 Time 26 | . . . 26 Parts Recycled . | . . . . Recycled Matter . | . . . . Retrieved Matter . | . . . . Retrieved Components 3 | . 3 . . Parts Scanalyzed . | . . . . Part Schematics Acquired . | . . . . Parts Damaged . | . . . . Bothacking | -11 -10 -10 -9 ------------ Run | Yrd Mat Min Mat Used RIF Installer . | . . . . Robots Hacked . | . . . . Non-combat . | . . . . Combat . | . . . . Robot Hacks Applied . | . . . . Relay Couplers Released . | . . . . Fabnet Peak Effective % . | . . . . Robots Rewired . | . . . . Allies Hacked . | . . . . Hacks Repelled . | . . . . Allies | -11 -10 -10 -9 -------- Run | Yrd Mat Min Mat Total Allies 1 | . . 1 . Largest Group 1 | . . 1 1 Highest-Rated Group 16 | . . 16 16 Highest-Rated Ally 16 | . . 16 16 Total Orders . | . . . . Ally Attacks 2 | . . . 2 Total Damage . | . . . . Kills . | . . . . Allies Corrupted . | . . . . Allies Melted . | . . . . Intel | -11 -10 -10 -9 ------- Run | Yrd Mat Min Mat Robot Analysis Total . | . . . . Derelict Logs Recovered . | . . . . Drone Launches . | . . . . Drone Recoveries . | . . . . Exploration | -11 -10 -10 -9 ------------- Run | Yrd Mat Min Mat Turns Passed 777 | 49 198 177 353 Spaces Moved 521 | 43 189 137 152 Core 10 | 6 . . 4 Treads . | . . . . Legs 58 | . . . 58 Wheels 453 | 37 189 137 90 Hover . | . . . . Flight . | . . . . Fastest Speed 50 | 50 80 95 95 Average Speed 102 | 80 83 95 140 Slowest Speed 400 | 200 95 95 400 Overloaded Moves . | . . . . Propulsion Burnouts . | . . . . Robots Hopped . | . . . . Cave-ins Triggered . | . . . . Exploration Rate (%) 21 | 3 31 35 16 Regions Visited 3 Branch Regions 1 Pre-discovered Areas . | . . . . Known Exits Taken . | . . . . Unknown Exits Taken 3 | 1 1 1 . Scrap Searched . | . . . . Spaces Dug . | . . . . Terrain Destroyed 152 | . 72 8 72 Melee . | . . . . Projectile . | . . . . AOE 152 | . 72 8 72 Terrain Rammed . | . . . . Walls Destroyed . | . . . . Machines Disabled . | . . . . Actions | -11 -10 -10 -9 --------- Run | Yrd Mat Min Mat Total 675 | 57 215 163 240 Wait 26 | . . 4 22 Move 518 | 42 188 136 152 Hop . | . . . . Pick Up 22 | 9 7 1 5 Fast Attach . | . . . . Attach 14 | 6 2 1 5 Detach 2 | . 1 . 1 Swap 7 | . 2 1 4 Drop 4 | . 1 . 3 Fire 82 | . 14 20 48 Melee . | . . . . Ram . | . . . . Kick . | . . . . Crush . | . . . . Escape Stasis . | . . . . Rewire . | . . . . Trap . | . . . . Miscellaneous . | . . . . Route ------- -11/Scrapyard -10/Materials -10/Mines -9/Materials History --------- Turn | Location | Event 38 | -11/Scrapyard | Discovered new exit (range 12) 50 | -11/Scrapyard | Entered Materials 229 | -10/Materials | Discovered new exit (range 11) 248 | -10/Materials | Entered Mines 270 | -10/Mines | Met a Derelict bent on vengeance 304 | -10/Mines | Build established: Mutant 380 | -10/Mines | Discovered new exit (range 7) 414 | -10/Mines | Assisted by bots powering up and referring to "LRC-V3" 425 | -10/Mines | Entered Materials 425 | -9/Materials | Accompanied by 1 ally 425 | -9/Materials | Evolved 2 slots: Power x1, Utility x1 517 | -9/Materials | Repaired Lgt. Cannon? 733 | -9/Materials | Core integrity fell below 50% 750 | -9/Materials | Core integrity fell below 20% 758 | -9/Materials | Lost 8 parts (2p2n1u3w) 778 | -9/Materials | Destroyed by G-34 Mercenary with Small Laser Last Messages --------------- G-34 Mercenary destroyed. R-06 Scavenger collects Heat Sink. K-01 Serf collects debris. C-30 ARC bursts open, deploying its payload. G-47 Trooper unfolds itself. G-34 Mercenary unfolds itself. K-01 Serf collects debris. Acquired 20 matter. K-01 Serf collects debris. U-05 Engineer builds a Wall. Acquired 10 matter. Acquired 2 matter. K-01 Serf collects debris. G-34 Mercenary destroyed. The unstable cave ceiling collapses. G-47 Trooper destroyed. Destroyed Welding Torch. The unstable cave ceiling collapses. K-01 Serf collects debris. Acquired 18 matter. Map ----- +----------------------------------------------------+ | ?????????????????????????????????????########???# | | ?????????????????????????????????????# #???# | | ?????????????????????????????????????# #???# | | ?????????????????????????????????????# "=" #???# | | ?????????????????????????????????????# "R" #???#| | | ??????????????????????? ?########### """ #???# | | ??????????????????????? ?# # #???# | | ??????????????????????# ## ####+######## | | ??????????????????????# ## # | | ??????????????????????# ## + | | ??????????????????????# ## # [ ! | | ??????????????????????# ## #####+# | | ??????????????????#???# ## ## | | ??????????????????# ??# t ## # #""" | | ??????????????#####+#?# ########## ##""" | | ??????????????# ?# #????????# # #""" | | ??????????????# # #????????### # | | ??????????????# !! # ####?????### # #""" | | ??????????????# !! # ########### ###""" | | ??????????????# # #?#""" | | ??????????????# + % #?# | | ??????????????# # % % #?###### | | ??????????????# # #######+### #??????? | | ??????????????# # !# #### ##??????? | | ??????????????# # # #??# #???????? | | ??????????????# % @ #??# #???????? | | ??????????????####### % #??? #???????? | | ????????????????????# # #########??? #???????? | | ????????????????????## % ?????????? #???????? | | ????????????????????# ""????????? ???????? | | ????????????????????# # "Y"???????? ???????? | | ????????????????????## ??????? ???????? | | ????????????????????? # ??????? ???????? | | ???????????????????? u# ???????? ???????? | | ???????????????????? k + "???????????????? | | ???????????????????w g #? "???????????????? | | ??????????????????? "## #? ???????????????? | | ??????????????????"| "?# #??####???????????????? | | ??????????????????"""???% r ?????????????????????? | | ???????????????????????? ?????????????????????? | | ???????????????????????? a ??????????????????????? | | ?????????????????????????????????????????????????? | | ?????????????????????????????????????????????????? | | ?????????????????????????????????????????????????? | | ?????????????????????????????????????????????????? | | ?????????????????????????????????????????????????? | | ?????????????????????????????????????????????????? | | ?????????????????????????????????????????????????? | | ?????????????????????????????????????????????????? | | ?????????????????????????????????????????????????? | +----------------------------------------------------+ Best States ------------- Heat Dissipation 28 Energy Generation 21 Energy Capacity 325 Matter Stores 300 Matter Capacity 300 Sight Range 16 Terrain Scan Density 10 Armor Coverage 80 Evasion (%) 44 Item Schematics ----------------- None Robot Schematics ------------------ None Fabricated ------------ Nothing Alien Tech Used ----------------- None Achievements -------------- Part-time Mechanic Challenges ------------ None Game ------ Seed CompositeNeutrinoFlakker Manual? 0 Play Time 00:17:02 Cumulative 5.6 hours Start 2024.04.16 @ 09:31:49 End 2024.04.16 @ 09:51:11 Sessions 1 Manual Loads 0 Difficulty Rogue Special Mode None Game No. 9 Rogue 9 Adventurer 0 Explorer 0 Win Type - Total 0 Types 0/0/0/0/0/0/0/0/0 Lore% 5 Gallery% 9 Achievement% 11 Wizard Run 0 Options --------- Layout 0 ASCII 0 Keyboard 0 Movement Mouse Keybinds 0 Fullscreen 1 Font 18/SmallcapsGlow Map View 76x50 Zoom Use 0% Tactical HUD 0 Map Filters NONE Filters NONE Steam 1 RUN: a9996751-e75e-4443-8877-a4aa43316b70